Workbook

Sheet 0
C3: date | G3: taster
L4: =G9 -> reference
C5: range | G5: product
C7: flavour | G7: notes
G9: reference | H9: sample 1 | I9: sample 2
D10: f l a v o r | E10: typicity | G10: 9 | H10: 8 | I10: 8
E11: milky | G11: 7 | H11: 9 | I11: 5
E12: creamy | G12: 3 | H12: 8 | I12: 4
E13: buttery | G13: 7 | H13: 7 | I13: 4
E14: eggy | G14: 3 | H14: 6 | I14: 3
E15: sweety | G15: 6 | H15: 5 | I15: 6
E16: cheesy | G16: 1 | H16: 4 | I16: 7
E17: cooked | G17: 2 | H17: 3 | I17: 8
E18: metallic | G18: 0 | H18: 2 | I18: 8 | L18: =H9 -> sample 1
E19: mouldy | G19: 0 | H19: 1 | I19: 8
E20: bittery | G20: 0 | H20: 6 | I20: 8
E21: salty | G21: 2 | H21: 1 | I21: 8
D22: t e x t u r e | E22: body | G22: 8 | H22: 2 | I22: 8
E23: creaminess | G23: 8 | H23: 3 | I23: 6
E24: chewiness | G24: 0 | H24: 4 | I24: 5
E25: oiliness | G25: 0 | H25: 5 | I25: 4
E26: iciness | G26: 1 | H26: 6 | I26: 1
E27: sandiness | G27: 0 | H27: 7 | I27: 2
E28: sponginess | G28: 0 | H28: 8 | I28: 3
E29: gumminess | G29: 2 | H29: 9 | I29: 4
E30: hardness | G30: 2 | H30: 3 | I30: 4
D31: general | E31: colour | G31: 9 | H31: 7 | I31: 6
E32: appearance | G32: 9 | H32: 8 | I32: 9 | L32: =I9 -> sample 2
E33: preference | G33: 9 | H33: 8 | I33: 8
C35: evaluation range | D35: value | E35: perception | G35: notes | H35: notes | I35: notes
D36: 0 | E36: null
D37: 1 | E37: -
D38: 2 | E38: -
D39: 3 | E39: -
D40: 4 | E40: -
D41: 5 | E41: medium
D42: 6 | E42: -
D43: 7 | E43: -
D44: 8 | E44: -
D45: 9 | E45: -
D46: 10 | E46: maximum

Sheet 1
C3: ='0'!C3 -> date | G3: ='0'!G3 -> taster
L4: ='0'!L4 -> reference
C5: ='0'!C5 -> range | G5: ='0'!G5 -> product
C7: ='0'!C7 -> flavour | G7: ='0'!G7 -> notes
G9: ='0'!G9 -> reference | H9: ='0'!H9 -> sample 1 | I9: ='0'!I9 -> sample 2
D10: ='0'!D10:D21 -> f l a v o r | E10: ='0'!E10 -> typicity | G10: ='0'!G10 -> 9 | H10: 3 | I10: 8
E11: ='0'!E11 -> milky | G11: ='0'!G11 -> 7 | H11: 3 | I11: 5
E12: ='0'!E12 -> creamy | G12: ='0'!G12 -> 3 | H12: 3 | I12: 4
E13: ='0'!E13 -> buttery | G13: ='0'!G13 -> 7 | H13: 5 | I13: 2
E14: ='0'!E14 -> eggy | G14: ='0'!G14 -> 3 | H14: 4 | I14: 3
E15: ='0'!E15 -> sweety | G15: ='0'!G15 -> 6 | H15: 4 | I15: 6
E16: ='0'!E16 -> cheesy | G16: ='0'!G16 -> 1 | H16: 2 | I16: 7
E17: ='0'!E17 -> cooked | G17: ='0'!G17 -> 2 | H17: 2 | I17: 8
E18: ='0'!E18 -> metallic | G18: ='0'!G18 -> 0 | H18: 1 | I18: 3 | L18: ='0'!L18 -> sample 1
E19: ='0'!E19 -> mouldy | G19: ='0'!G19 -> 0 | H19: ='0'!H19 -> 1 | I19: 3
E20: ='0'!E20 -> bittery | G20: ='0'!G20 -> 0 | H20: 1 | I20: 8
E21: ='0'!E21 -> salty | G21: ='0'!G21 -> 2 | H21: 1 | I21: 8
D22: ='0'!D22:D30 -> t e x t u r e | E22: ='0'!E22 -> body | G22: ='0'!G22 -> 8 | H22: 2 | I22: 8
E23: ='0'!E23 -> creaminess | G23: ='0'!G23 -> 8 | H23: 8 | I23: 3
E24: ='0'!E24 -> chewiness | G24: ='0'!G24 -> 0 | H24: 4 | I24: 5
E25: ='0'!E25 -> oiliness | G25: ='0'!G25 -> 0 | H25: 3 | I25: 4
E26: ='0'!E26 -> iciness | G26: ='0'!G26 -> 1 | H26: 6 | I26: 1
E27: ='0'!E27 -> sandiness | G27: ='0'!G27 -> 0 | H27: 7 | I27: 3
E28: ='0'!E28 -> sponginess | G28: ='0'!G28 -> 0 | H28: 8 | I28: 3
E29: ='0'!E29 -> gumminess | G29: ='0'!G29 -> 2 | H29: 9 | I29: 4
E30: ='0'!E30 -> hardness | G30: ='0'!G30 -> 2 | H30: 3 | I30: 4
D31: ='0'!D31:D33 -> general | E31: ='0'!E31 -> colour | G31: ='0'!G31 -> 9 | H31: 7 | I31: 6
E32: ='0'!E32 -> appearance | G32: ='0'!G32 -> 9 | H32: 5 | I32: 3 | L32: ='0'!L32 -> sample 2
E33: ='0'!E33 -> preference | G33: 7 | H33: 6 | I33: 7
C35: ='0'!C35:C46 -> evaluation range | D35: ='0'!D35 -> value | E35: ='0'!E35 -> perception | G35: ='0'!G35 -> notes | H35: ='0'!H35 -> notes | I35: ='0'!I35 -> notes
D36: ='0'!D36 -> 0 | E36: ='0'!E36 -> null
D37: ='0'!D37 -> 1 | E37: ='0'!E37 -> -
D38: ='0'!D38 -> 2 | E38: ='0'!E38 -> -
D39: ='0'!D39 -> 3 | E39: ='0'!E39 -> -
D40: ='0'!D40 -> 4 | E40: ='0'!E40 -> -
D41: ='0'!D41 -> 5 | E41: ='0'!E41 -> medium
D42: ='0'!D42 -> 6 | E42: ='0'!E42 -> -
D43: ='0'!D43 -> 7 | E43: ='0'!E43 -> -
D44: ='0'!D44 -> 8 | E44: ='0'!E44 -> -
D45: ='0'!D45 -> 9 | E45: ='0'!E45 -> -
D46: ='0'!D46 -> 10 | E46: ='0'!E46 -> maximum

Sheet 2
C3: ='0'!C3 -> date | G3: ='0'!G3 -> taster
L4: ='0'!L4 -> reference
C5: ='0'!C5 -> range | G5: ='0'!G5 -> product
C7: ='0'!C7 -> flavour | G7: ='0'!G7 -> notes
G9: ='0'!G9 -> reference | H9: ='0'!H9 -> sample 1 | I9: ='0'!I9 -> sample 2
D10: ='0'!D10:D21 -> f l a v o r | E10: ='0'!E10 -> typicity | G10: ='0'!G10 -> 9 | H10: 8 | I10: 8
E11: ='0'!E11 -> milky | G11: ='0'!G11 -> 7 | H11: 4 | I11: 5
E12: ='0'!E12 -> creamy | G12: ='0'!G12 -> 3 | H12: 6 | I12: 4
E13: ='0'!E13 -> buttery | G13: ='0'!G13 -> 7 | H13: 7 | I13: 2
E14: ='0'!E14 -> eggy | G14: ='0'!G14 -> 3 | H14: 9 | I14: 3
E15: ='0'!E15 -> sweety | G15: ='0'!G15 -> 6 | H15: 4 | I15: 6
E16: ='0'!E16 -> cheesy | G16: ='0'!G16 -> 1 | H16: 2 | I16: 7
E17: ='0'!E17 -> cooked | G17: ='0'!G17 -> 2 | H17: 1 | I17: 8
E18: ='0'!E18 -> metallic | G18: ='0'!G18 -> 0 | H18: 2 | I18: 3 | L18: ='0'!L18 -> sample 1
E19: ='0'!E19 -> mouldy | G19: ='0'!G19 -> 0 | H19: 1 | I19: 3
E20: ='0'!E20 -> bittery | G20: ='0'!G20 -> 0 | H20: 6 | I20: 8
E21: ='0'!E21 -> salty | G21: ='0'!G21 -> 2 | H21: 1 | I21: 8
D22: ='0'!D22:D30 -> t e x t u r e | E22: ='0'!E22 -> body | G22: ='0'!G22 -> 8 | H22: 2 | I22: 8
E23: ='0'!E23 -> creaminess | G23: ='0'!G23 -> 8 | H23: 8 | I23: 3
E24: ='0'!E24 -> chewiness | G24: ='0'!G24 -> 0 | H24: 4 | I24: 5
E25: ='0'!E25 -> oiliness | G25: ='0'!G25 -> 0 | H25: 3 | I25: 4
E26: ='0'!E26 -> iciness | G26: ='0'!G26 -> 1 | H26: 6 | I26: 1
E27: ='0'!E27 -> sandiness | G27: ='0'!G27 -> 0 | H27: 7 | I27: 3
E28: ='0'!E28 -> sponginess | G28: ='0'!G28 -> 0 | H28: 8 | I28: 3
E29: ='0'!E29 -> gumminess | G29: ='0'!G29 -> 2 | H29: 9 | I29: 4
E30: ='0'!E30 -> hardness | G30: ='0'!G30 -> 2 | H30: 3 | I30: 4
D31: ='0'!D31:D33 -> general | E31: ='0'!E31 -> colour | G31: ='0'!G31 -> 9 | H31: 7 | I31: 6
E32: ='0'!E32 -> appearance | G32: ='0'!G32 -> 9 | H32: 5 | I32: 3 | L32: ='0'!L32 -> sample 2
E33: ='0'!E33 -> preference | G33: 5 | H33: 8 | I33: 5
C35: ='0'!C35:C46 -> evaluation range | D35: ='0'!D35 -> value | E35: ='0'!E35 -> perception | G35: ='0'!G35 -> notes | H35: ='0'!H35 -> notes | I35: ='0'!I35 -> notes
D36: ='0'!D36 -> 0 | E36: ='0'!E36 -> null
D37: ='0'!D37 -> 1 | E37: ='0'!E37 -> -
D38: ='0'!D38 -> 2 | E38: ='0'!E38 -> -
D39: ='0'!D39 -> 3 | E39: ='0'!E39 -> -
D40: ='0'!D40 -> 4 | E40: ='0'!E40 -> -
D41: ='0'!D41 -> 5 | E41: ='0'!E41 -> medium
D42: ='0'!D42 -> 6 | E42: ='0'!E42 -> -
D43: ='0'!D43 -> 7 | E43: ='0'!E43 -> -
D44: ='0'!D44 -> 8 | E44: ='0'!E44 -> -
D45: ='0'!D45 -> 9 | E45: ='0'!E45 -> -
D46: ='0'!D46 -> 10 | E46: ='0'!E46 -> maximum

Sheet 3
C3: ='0'!C3 -> date | G3: ='0'!G3 -> taster
L4: ='0'!L4 -> reference
C5: ='0'!C5 -> range | G5: ='0'!G5 -> product
C7: ='0'!C7 -> flavour | G7: ='0'!G7 -> notes
G9: ='0'!G9 -> reference | H9: ='0'!H9 -> sample 1 | I9: ='0'!I9 -> sample 2
D10: ='0'!D10:D21 -> f l a v o r | E10: ='0'!E10 -> typicity | G10: ='0'!G10 -> 9 | H10: 8 | I10: 3
E11: ='0'!E11 -> milky | G11: ='0'!G11 -> 7 | H11: 3 | I11: 5
E12: ='0'!E12 -> creamy | G12: ='0'!G12 -> 3 | H12: 8 | I12: 4
E13: ='0'!E13 -> buttery | G13: ='0'!G13 -> 7 | H13: 7 | I13: 4
E14: ='0'!E14 -> eggy | G14: ='0'!G14 -> 3 | H14: 6 | I14: 3
E15: ='0'!E15 -> sweety | G15: ='0'!G15 -> 6 | H15: 4 | I15: 6
E16: ='0'!E16 -> cheesy | G16: ='0'!G16 -> 1 | H16: 4 | I16: 7
E17: ='0'!E17 -> cooked | G17: ='0'!G17 -> 2 | H17: 3 | I17: 3
E18: ='0'!E18 -> metallic | G18: ='0'!G18 -> 0 | H18: 2 | I18: 8 | L18: ='0'!L18 -> sample 1
E19: ='0'!E19 -> mouldy | G19: ='0'!G19 -> 0 | H19: 1 | I19: 3
E20: ='0'!E20 -> bittery | G20: ='0'!G20 -> 0 | H20: 6 | I20: 3
E21: ='0'!E21 -> salty | G21: ='0'!G21 -> 2 | H21: 1 | I21: 8
D22: ='0'!D22:D30 -> t e x t u r e | E22: ='0'!E22 -> body | G22: ='0'!G22 -> 8 | H22: 2 | I22: 8
E23: ='0'!E23 -> creaminess | G23: ='0'!G23 -> 8 | H23: 3 | I23: 6
E24: ='0'!E24 -> chewiness | G24: ='0'!G24 -> 0 | H24: 7 | I24: 3
E25: ='0'!E25 -> oiliness | G25: ='0'!G25 -> 0 | H25: 5 | I25: 4
E26: ='0'!E26 -> iciness | G26: ='0'!G26 -> 1 | H26: 1 | I26: 1
E27: ='0'!E27 -> sandiness | G27: ='0'!G27 -> 0 | H27: 7 | I27: 2
E28: ='0'!E28 -> sponginess | G28: ='0'!G28 -> 0 | H28: 8 | I28: 3
E29: ='0'!E29 -> gumminess | G29: ='0'!G29 -> 2 | H29: 1 | I29: 4
E30: ='0'!E30 -> hardness | G30: ='0'!G30 -> 2 | H30: 3 | I30: 4
D31: ='0'!D31:D33 -> general | E31: ='0'!E31 -> colour | G31: ='0'!G31 -> 9 | H31: 7 | I31: 6
E32: ='0'!E32 -> appearance | G32: ='0'!G32 -> 9 | H32: 1 | I32: 3 | L32: ='0'!L32 -> sample 2
E33: ='0'!E33 -> preference | G33: 6 | H33: 6 | I33: 7
C35: ='0'!C35:C46 -> evaluation range | D35: ='0'!D35 -> value | E35: ='0'!E35 -> perception | G35: ='0'!G35 -> notes | H35: ='0'!H35 -> notes | I35: ='0'!I35 -> notes
D36: ='0'!D36 -> 0 | E36: ='0'!E36 -> null
D37: ='0'!D37 -> 1 | E37: ='0'!E37 -> -
D38: ='0'!D38 -> 2 | E38: ='0'!E38 -> -
D39: ='0'!D39 -> 3 | E39: ='0'!E39 -> -
D40: ='0'!D40 -> 4 | E40: ='0'!E40 -> -
D41: ='0'!D41 -> 5 | E41: ='0'!E41 -> medium
D42: ='0'!D42 -> 6 | E42: ='0'!E42 -> -
D43: ='0'!D43 -> 7 | E43: ='0'!E43 -> -
D44: ='0'!D44 -> 8 | E44: ='0'!E44 -> -
D45: ='0'!D45 -> 9 | E45: ='0'!E45 -> -
D46: ='0'!D46 -> 10 | E46: ='0'!E46 -> maximum

Sheet 4
C3: ='0'!C3 -> date | G3: ='0'!G3 -> taster
L4: ='0'!L4 -> reference
C5: ='0'!C5 -> range | G5: ='0'!G5 -> product
C7: ='0'!C7 -> flavour | G7: ='0'!G7 -> notes
G9: ='0'!G9 -> reference | H9: ='0'!H9 -> sample 1 | I9: ='0'!I9 -> sample 2
D10: ='0'!D10:D21 -> f l a v o r | E10: ='0'!E10 -> typicity | G10: ='0'!G10 -> 9 | H10: 1 | I10: 4
E11: ='0'!E11 -> milky | G11: ='0'!G11 -> 7 | H11: 9 | I11: 5
E12: ='0'!E12 -> creamy | G12: ='0'!G12 -> 3 | H12: 8 | I12: 4
E13: ='0'!E13 -> buttery | G13: ='0'!G13 -> 7 | H13: 7 | I13: 4
E14: ='0'!E14 -> eggy | G14: ='0'!G14 -> 3 | H14: 6 | I14: 3
E15: ='0'!E15 -> sweety | G15: ='0'!G15 -> 6 | H15: 5 | I15: 6
E16: ='0'!E16 -> cheesy | G16: ='0'!G16 -> 1 | H16: 4 | I16: 7
E17: ='0'!E17 -> cooked | G17: ='0'!G17 -> 2 | H17: 3 | I17: 2
E18: ='0'!E18 -> metallic | G18: ='0'!G18 -> 0 | H18: 2 | I18: 8 | L18: ='0'!L18 -> sample 1
E19: ='0'!E19 -> mouldy | G19: ='0'!G19 -> 0 | H19: 1 | I19: 8
E20: ='0'!E20 -> bittery | G20: ='0'!G20 -> 0 | H20: 1 | I20: 2
E21: ='0'!E21 -> salty | G21: ='0'!G21 -> 2 | H21: 1 | I21: 8
D22: ='0'!D22:D30 -> t e x t u r e | E22: ='0'!E22 -> body | G22: ='0'!G22 -> 8 | H22: 2 | I22: 8
E23: ='0'!E23 -> creaminess | G23: ='0'!G23 -> 8 | H23: 3 | I23: 6
E24: ='0'!E24 -> chewiness | G24: ='0'!G24 -> 0 | H24: 4 | I24: 5
E25: ='0'!E25 -> oiliness | G25: ='0'!G25 -> 0 | H25: 5 | I25: 4
E26: ='0'!E26 -> iciness | G26: ='0'!G26 -> 1 | H26: 3 | I26: 1
E27: ='0'!E27 -> sandiness | G27: ='0'!G27 -> 0 | H27: 7 | I27: 2
E28: ='0'!E28 -> sponginess | G28: ='0'!G28 -> 0 | H28: 8 | I28: 3
E29: ='0'!E29 -> gumminess | G29: ='0'!G29 -> 2 | H29: 9 | I29: 4
E30: ='0'!E30 -> hardness | G30: ='0'!G30 -> 2 | H30: 3 | I30: 4
D31: ='0'!D31:D33 -> general | E31: ='0'!E31 -> colour | G31: ='0'!G31 -> 9 | H31: 7 | I31: 6
E32: ='0'!E32 -> appearance | G32: ='0'!G32 -> 9 | H32: 8 | I32: 2 | L32: ='0'!L32 -> sample 2
E33: ='0'!E33 -> preference | G33: 8 | H33: 6 | I33: 7
C35: ='0'!C35:C46 -> evaluation range | D35: ='0'!D35 -> value | E35: ='0'!E35 -> perception | G35: ='0'!G35 -> notes | H35: ='0'!H35 -> notes | I35: ='0'!I35 -> notes
D36: ='0'!D36 -> 0 | E36: ='0'!E36 -> null
D37: ='0'!D37 -> 1 | E37: ='0'!E37 -> -
D38: ='0'!D38 -> 2 | E38: ='0'!E38 -> -
D39: ='0'!D39 -> 3 | E39: ='0'!E39 -> -
D40: ='0'!D40 -> 4 | E40: ='0'!E40 -> -
D41: ='0'!D41 -> 5 | E41: ='0'!E41 -> medium
D42: ='0'!D42 -> 6 | E42: ='0'!E42 -> -
D43: ='0'!D43 -> 7 | E43: ='0'!E43 -> -
D44: ='0'!D44 -> 8 | E44: ='0'!E44 -> -
D45: ='0'!D45 -> 9 | E45: ='0'!E45 -> -
D46: ='0'!D46 -> 10 | E46: ='0'!E46 -> maximum

Sheet 5
C3: ='0'!C3 -> date | G3: ='0'!G3 -> taster
L4: ='0'!L4 -> reference
C5: ='0'!C5 -> range | G5: ='0'!G5 -> product
C7: ='0'!C7 -> flavour | G7: ='0'!G7 -> notes
G9: ='0'!G9 -> reference | H9: ='0'!H9 -> sample 1 | I9: ='0'!I9 -> sample 2
D10: ='0'!D10:D21 -> f l a v o r | E10: ='0'!E10 -> typicity | G10: ='0'!G10 -> 9 | H10: 8 | I10: 1
E11: ='0'!E11 -> milky | G11: ='0'!G11 -> 7 | H11: 9 | I11: 5
E12: ='0'!E12 -> creamy | G12: ='0'!G12 -> 3 | H12: 8 | I12: 4
E13: ='0'!E13 -> buttery | G13: ='0'!G13 -> 7 | H13: 7 | I13: 4
E14: ='0'!E14 -> eggy | G14: ='0'!G14 -> 3 | H14: 6 | I14: 3
E15: ='0'!E15 -> sweety | G15: ='0'!G15 -> 6 | H15: 5 | I15: 6
E16: ='0'!E16 -> cheesy | G16: ='0'!G16 -> 1 | H16: 4 | I16: 7
E17: ='0'!E17 -> cooked | G17: ='0'!G17 -> 2 | H17: 3 | I17: 8
E18: ='0'!E18 -> metallic | G18: ='0'!G18 -> 0 | H18: 2 | I18: 6 | L18: ='0'!L18 -> sample 1
E19: ='0'!E19 -> mouldy | G19: ='0'!G19 -> 0 | H19: 1 | I19: 8
E20: ='0'!E20 -> bittery | G20: ='0'!G20 -> 0 | H20: 6 | I20: 6
E21: ='0'!E21 -> salty | G21: ='0'!G21 -> 2 | H21: 1 | I21: 3
D22: ='0'!D22:D30 -> t e x t u r e | E22: ='0'!E22 -> body | G22: ='0'!G22 -> 8 | H22: 2 | I22: 8
E23: ='0'!E23 -> creaminess | G23: ='0'!G23 -> 8 | H23: 3 | I23: 6
E24: ='0'!E24 -> chewiness | G24: ='0'!G24 -> 0 | H24: 4 | I24: 5
E25: ='0'!E25 -> oiliness | G25: ='0'!G25 -> 0 | H25: 5 | I25: 4
E26: ='0'!E26 -> iciness | G26: ='0'!G26 -> 1 | H26: 6 | I26: 1
E27: ='0'!E27 -> sandiness | G27: ='0'!G27 -> 0 | H27: 7 | I27: 2
E28: ='0'!E28 -> sponginess | G28: ='0'!G28 -> 0 | H28: 8 | I28: 3
E29: ='0'!E29 -> gumminess | G29: ='0'!G29 -> 2 | H29: 9 | I29: 4
E30: ='0'!E30 -> hardness | G30: ='0'!G30 -> 2 | H30: 3 | I30: 4
D31: ='0'!D31:D33 -> general | E31: ='0'!E31 -> colour | G31: ='0'!G31 -> 9 | H31: 7 | I31: 6
E32: ='0'!E32 -> appearance | G32: ='0'!G32 -> 9 | H32: 8 | I32: 6 | L32: ='0'!L32 -> sample 2
E33: ='0'!E33 -> preference | G33: 7 | H33: 7 | I33: 9
C35: ='0'!C35:C46 -> evaluation range | D35: ='0'!D35 -> value | E35: ='0'!E35 -> perception | G35: ='0'!G35 -> notes | H35: ='0'!H35 -> notes | I35: ='0'!I35 -> notes
D36: ='0'!D36 -> 0 | E36: ='0'!E36 -> null
D37: ='0'!D37 -> 1 | E37: ='0'!E37 -> -
D38: ='0'!D38 -> 2 | E38: ='0'!E38 -> -
D39: ='0'!D39 -> 3 | E39: ='0'!E39 -> -
D40: ='0'!D40 -> 4 | E40: ='0'!E40 -> -
D41: ='0'!D41 -> 5 | E41: ='0'!E41 -> medium
D42: ='0'!D42 -> 6 | E42: ='0'!E42 -> -
D43: ='0'!D43 -> 7 | E43: ='0'!E43 -> -
D44: ='0'!D44 -> 8 | E44: ='0'!E44 -> -
D45: ='0'!D45 -> 9 | E45: ='0'!E45 -> -
D46: ='0'!D46 -> 10 | E46: ='0'!E46 -> maximum

Sheet 6
C3: ='0'!C3 -> date | G3: ='0'!G3 -> taster
L4: ='0'!L4 -> reference
C5: ='0'!C5 -> range | G5: ='0'!G5 -> product
C7: ='0'!C7 -> flavour | G7: ='0'!G7 -> notes
G9: ='0'!G9 -> reference | H9: ='0'!H9 -> sample 1 | I9: ='0'!I9 -> sample 2
D10: ='0'!D10:D21 -> f l a v o r | E10: ='0'!E10 -> typicity | G10: ='0'!G10 -> 9 | H10: 8 | I10: 5
E11: ='0'!E11 -> milky | G11: ='0'!G11 -> 7 | H11: 9 | I11: 5
E12: ='0'!E12 -> creamy | G12: ='0'!G12 -> 3 | H12: 8 | I12: 4
E13: ='0'!E13 -> buttery | G13: ='0'!G13 -> 7 | H13: 7 | I13: 4
E14: ='0'!E14 -> eggy | G14: ='0'!G14 -> 3 | H14: 6 | I14: 3
E15: ='0'!E15 -> sweety | G15: ='0'!G15 -> 6 | H15: 5 | I15: 6
E16: ='0'!E16 -> cheesy | G16: ='0'!G16 -> 1 | H16: 4 | I16: 9
E17: ='0'!E17 -> cooked | G17: ='0'!G17 -> 2 | H17: 3 | I17: 8
E18: ='0'!E18 -> metallic | G18: ='0'!G18 -> 0 | H18: 2 | I18: 8 | L18: ='0'!L18 -> sample 1
E19: ='0'!E19 -> mouldy | G19: ='0'!G19 -> 0 | H19: 1 | I19: 9
E20: ='0'!E20 -> bittery | G20: ='0'!G20 -> 0 | H20: 6 | I20: 9
E21: ='0'!E21 -> salty | G21: ='0'!G21 -> 2 | H21: 1 | I21: 8
D22: ='0'!D22:D30 -> t e x t u r e | E22: ='0'!E22 -> body | G22: ='0'!G22 -> 8 | H22: 2 | I22: 8
E23: ='0'!E23 -> creaminess | G23: ='0'!G23 -> 8 | H23: 3 | I23: 6
E24: ='0'!E24 -> chewiness | G24: ='0'!G24 -> 0 | H24: 4 | I24: 1
E25: ='0'!E25 -> oiliness | G25: ='0'!G25 -> 0 | H25: 5 | I25: 4
E26: ='0'!E26 -> iciness | G26: ='0'!G26 -> 1 | H26: 6 | I26: 1
E27: ='0'!E27 -> sandiness | G27: ='0'!G27 -> 0 | H27: 7 | I27: 2
E28: ='0'!E28 -> sponginess | G28: ='0'!G28 -> 0 | H28: 8 | I28: 3
E29: ='0'!E29 -> gumminess | G29: ='0'!G29 -> 2 | H29: 9 | I29: 4
E30: ='0'!E30 -> hardness | G30: ='0'!G30 -> 2 | H30: 3 | I30: 9
D31: ='0'!D31:D33 -> general | E31: ='0'!E31 -> colour | G31: ='0'!G31 -> 9 | H31: 7 | I31: 9
E32: ='0'!E32 -> appearance | G32: ='0'!G32 -> 9 | H32: 8 | I32: 9 | L32: ='0'!L32 -> sample 2
E33: ='0'!E33 -> preference | G33: 7 | H33: 8 | I33: 9
C35: ='0'!C35:C46 -> evaluation range | D35: ='0'!D35 -> value | E35: ='0'!E35 -> perception | G35: ='0'!G35 -> notes | H35: ='0'!H35 -> notes | I35: ='0'!I35 -> notes
D36: ='0'!D36 -> 0 | E36: ='0'!E36 -> null
D37: ='0'!D37 -> 1 | E37: ='0'!E37 -> -
D38: ='0'!D38 -> 2 | E38: ='0'!E38 -> -
D39: ='0'!D39 -> 3 | E39: ='0'!E39 -> -
D40: ='0'!D40 -> 4 | E40: ='0'!E40 -> -
D41: ='0'!D41 -> 5 | E41: ='0'!E41 -> medium
D42: ='0'!D42 -> 6 | E42: ='0'!E42 -> -
D43: ='0'!D43 -> 7 | E43: ='0'!E43 -> -
D44: ='0'!D44 -> 8 | E44: ='0'!E44 -> -
D45: ='0'!D45 -> 9 | E45: ='0'!E45 -> -
D46: ='0'!D46 -> 10 | E46: ='0'!E46 -> maximum

Sheet final_average
C3: ='0'!C3 -> date | G3: ='0'!G3 -> taster
M4: ='0'!L4 -> reference
C5: ='0'!C5 -> range | G5: ='0'!G5 -> product
C7: ='0'!C7 -> flavour
G9: ='0'!G9 -> reference | H9: ='0'!H9 -> sample 1 | I9: ='0'!I9 -> sample 2 | J9: trend
D10: ='0'!D10:D21 -> f l a v o r | E10: ='0'!E10 -> typicity | G10: =AVERAGE('1:6'!G10) -> 9 | H10: =AVERAGE('1:6'!H10) -> 6 | I10: =AVERAGE('1:6'!I10) -> 4.833333333
E11: ='0'!E11 -> milky | G11: =AVERAGE('1:6'!G11) -> 7 | H11: =AVERAGE('1:6'!H11) -> 6.166666667 | I11: =AVERAGE('1:6'!I11) -> 5
E12: ='0'!E12 -> creamy | G12: =AVERAGE('1:6'!G12) -> 3 | H12: =AVERAGE('1:6'!H12) -> 6.833333333 | I12: =AVERAGE('1:6'!I12) -> 4
E13: ='0'!E13 -> buttery | G13: =AVERAGE('1:6'!G13) -> 7 | H13: =AVERAGE('1:6'!H13) -> 6.666666667 | I13: =AVERAGE('1:6'!I13) -> 3.333333333
E14: ='0'!E14 -> eggy | G14: =AVERAGE('1:6'!G14) -> 3 | H14: =AVERAGE('1:6'!H14) -> 6.166666667 | I14: =AVERAGE('1:6'!I14) -> 3
E15: ='0'!E15 -> sweety | G15: =AVERAGE('1:6'!G15) -> 6 | H15: =AVERAGE('1:6'!H15) -> 4.5 | I15: =AVERAGE('1:6'!I15) -> 6
E16: ='0'!E16 -> cheesy | G16: =AVERAGE('1:6'!G16) -> 1 | H16: =AVERAGE('1:6'!H16) -> 3.333333333 | I16: =AVERAGE('1:6'!I16) -> 7.333333333
E17: ='0'!E17 -> cooked | G17: =AVERAGE('1:6'!G17) -> 2 | H17: =AVERAGE('1:6'!H17) -> 2.5 | I17: =AVERAGE('1:6'!I17) -> 6.166666667
E18: ='0'!E18 -> metallic | G18: =AVERAGE('1:6'!G18) -> 0 | H18: =AVERAGE('1:6'!H18) -> 1.833333333 | I18: =AVERAGE('1:6'!I18) -> 6 | M18: ='0'!L18 -> sample 1
E19: ='0'!E19 -> mouldy | G19: =AVERAGE('1:6'!G19) -> 0 | H19: =AVERAGE('1:6'!H19) -> 1 | I19: =AVERAGE('1:6'!I19) -> 5.666666667
E20: ='0'!E20 -> bittery | G20: =AVERAGE('1:6'!G20) -> 0 | H20: =AVERAGE('1:6'!H20) -> 4.333333333 | I20: =AVERAGE('1:6'!I20) -> 6
E21: ='0'!E21 -> salty | G21: =AVERAGE('1:6'!G21) -> 2 | H21: =AVERAGE('1:6'!H21) -> 1 | I21: =AVERAGE('1:6'!I21) -> 7.166666667
D22: t e x t u r e | E22: ='0'!E22 -> body | G22: =AVERAGE('1:6'!G22) -> 8 | H22: =AVERAGE('1:6'!H22) -> 2 | I22: =AVERAGE('1:6'!I22) -> 8
E23: ='0'!E23 -> creaminess | G23: =AVERAGE('1:6'!G23) -> 8 | H23: =AVERAGE('1:6'!H23) -> 4.666666667 | I23: =AVERAGE('1:6'!I23) -> 5
E24: ='0'!E24 -> chewiness | G24: =AVERAGE('1:6'!G24) -> 0 | H24: =AVERAGE('1:6'!H24) -> 4.5 | I24: =AVERAGE('1:6'!I24) -> 4
E25: ='0'!E25 -> oiliness | G25: =AVERAGE('1:6'!G25) -> 0 | H25: =AVERAGE('1:6'!H25) -> 4.333333333 | I25: =AVERAGE('1:6'!I25) -> 4
E26: ='0'!E26 -> iciness | G26: =AVERAGE('1:6'!G26) -> 1 | H26: =AVERAGE('1:6'!H26) -> 4.666666667 | I26: =AVERAGE('1:6'!I26) -> 1
E27: ='0'!E27 -> sandiness | G27: =AVERAGE('1:6'!G27) -> 0 | H27: =AVERAGE('1:6'!H27) -> 7 | I27: =AVERAGE('1:6'!I27) -> 2.333333333
E28: ='0'!E28 -> sponginess | G28: =AVERAGE('1:6'!G28) -> 0 | H28: =AVERAGE('1:6'!H28) -> 8 | I28: =AVERAGE('1:6'!I28) -> 3
E29: ='0'!E29 -> gumminess | G29: =AVERAGE('1:6'!G29) -> 2 | H29: =AVERAGE('1:6'!H29) -> 7.666666667 | I29: =AVERAGE('1:6'!I29) -> 4
E30: ='0'!E30 -> hardness | G30: =AVERAGE('1:6'!G30) -> 2 | H30: =AVERAGE('1:6'!H30) -> 3 | I30: =AVERAGE('1:6'!I30) -> 4.833333333
D31: general | E31: ='0'!E31 -> colour | G31: =AVERAGE('1:6'!G31) -> 9 | H31: =AVERAGE('1:6'!H31) -> 7 | I31: =AVERAGE('1:6'!I31) -> 6.5
E32: ='0'!E32 -> appearance | G32: =AVERAGE('1:6'!G32) -> 9 | H32: =AVERAGE('1:6'!H32) -> 5.833333333 | I32: =AVERAGE('1:6'!I32) -> 4.333333333 | M32: ='0'!L32 -> sample 2
E33: ='0'!E33 -> preference | G33: =AVERAGE('1:6'!G33) -> 6.666666667 | H33: =AVERAGE('1:6'!H33) -> 6.833333333 | I33: =AVERAGE('0'!I33,'2'!I33,'3'!I33,'4'!I33,'5'!I33,'6'!I33) -> 7.5
C35: ='0'!C35:C46 -> evaluation range | D35: ='0'!D35 -> value | E35: ='0'!E35 -> perception
D36: ='0'!D36 -> 0 | E36: ='0'!E36 -> null
D37: ='0'!D37 -> 1 | E37: ='0'!E37 -> -
D38: ='0'!D38 -> 2 | E38: ='0'!E38 -> -
D39: ='0'!D39 -> 3 | E39: ='0'!E39 -> -
D40: ='0'!D40 -> 4 | E40: ='0'!E40 -> -
D41: ='0'!D41 -> 5 | E41: ='0'!E41 -> medium
D42: ='0'!D42 -> 6 | E42: ='0'!E42 -> -
D43: ='0'!D43 -> 7 | E43: ='0'!E43 -> -
D44: ='0'!D44 -> 8 | E44: ='0'!E44 -> -
D45: ='0'!D45 -> 9 | E45: ='0'!E45 -> -
D46: ='0'!D46 -> 10 | E46: ='0'!E46 -> maximum
